bitfinex-derivatives/quotes_ETHF0:USTF0_20260316
["timestamp","ask_amount","ask_price","bid_price","bid_amount"]
[1773691071439,3.6977754,2334.4,2333.2,2.45279513]
[1773691074447,3.54001509,2334.2,2333.2,0.00449958]
[1773691074941,3.54001509,2334.2,2333.2,2.41501245]
[1773691078443,3.75334299,2334.2,2333.2,2.41501245]
[1773691079947,3.75334299,2334.2,2333.2,2.52339245]
[1773691080547,3.75334299,2334.2,2333.2,2.52244245]
[1773691080746,3.75334299,2334.2,2333.2,2.41501245]
[1773691080948,3.75334299,2334.2,2333.2,2.52349245]
[1773691081148,3.75334299,2334.2,2333.2,2.73777245]
[1773691081546,3.75334299,2334.2,2333.2,2.62929245]
[1773691081746,3.75334299,2334.2,2333.2,0.21877958]
[1773691082047,3.81398682,2334.0,2333.2,0.21877958]
[1773691082249,3.81398682,2334.0,2332.8,2.46356881]
[1773691082448,0.2133279,2334.2,2332.8,2.46356881]
[1773691082449,3.81398682,2333.8,2332.8,2.46356881]
[1773691082846,3.81398682,2333.8,2333.0,2.45345766]
[1773691083049,3.81398682,2333.8,2333.2,2.48252507]
[1773691083248,3.81398682,2333.8,2333.2,2.488077]
[1773691084042,3.81398682,2333.8,2333.3,0.21427]
[1773691084248,3.70624682,2333.8,2333.3,2.69150345]
[1773691084752,3.70624682,2333.8,2333.3,2.80090345]
[1773691086353,3.70624682,2333.8,2333.3,2.79984345]
[1773691087252,3.70624682,2333.8,2333.3,2.69150345]
[1773691087555,3.70624682,2333.8,2333.3,0.32244]
[1773691088257,3.70624682,2333.8,2333.3,2.90090745]
[1773691088956,3.70624682,2333.8,2332.4,2.7236365]
[1773691089758,3.81398682,2333.6,2332.0,2.71414913]
[1773691089954,3.81398682,2333.4,2332.0,2.71881851]
[1773691090147,3.81398682,2333.2,2332.0,2.71881851]
[1773691090651,3.81398682,2333.2,2332.0,0.00466938]
[1773691091249,3.81398682,2333.2,2332.0,2.71929165]
[1773691097660,3.81398682,2333.2,2332.2,2.69941335]
[1773691098162,3.81398682,2333.2,2332.4,2.68982207]
[1773691100555,3.81398682,2333.2,2332.5,2.87981153]
[1773691101354,3.81398682,2334.1,2332.5,2.87981153]
[1773691101555,3.81398682,2333.9,2333.3,0.21427]
[1773691101753,3.81398682,2334.6,2333.4,0.21426]
[1773691101955,3.81398682,2334.6,2333.5,3.52901083]
[1773691104866,3.81398682,2334.6,2333.7,3.59159054]
[1773691105060,3.5574416,2334.7,2333.9,3.59159054]
[1773691109873,3.5574416,2334.7,2333.7,3.59631618]
[1773691110076,3.5574416,2334.7,2333.7,0.00472564]
[1773691111074,3.5574416,2334.7,2333.7,3.59631618]
[1773691112777,3.5574416,2334.7,2333.7,3.81055618]
[1773691113377,3.5574416,2334.7,2333.7,3.59631618]
[1773691122880,3.5574416,2334.7,2333.7,0.00472564]
[1773691123382,3.5574416,2334.7,2333.1,3.59159054]
[1773691124378,3.55306074,2334.5,2333.1,3.59592519]
[1773691124681,3.55306074,2334.5,2333.3,3.59159054]
[1773691129682,3.76636122,2334.5,2333.3,3.59159054]
[1773691130481,3.5574416,2334.7,2333.7,3.59159054]
[1773691130787,3.5574416,2334.7,2334.1,3.59159054]
[1773691131182,3.5574416,2334.7,2333.6,3.59159054]
[1773691132288,3.55306074,2334.5,2333.6,3.59159054]
[1773691132484,0.00438086,2334.7,2333.8,3.53869749]
[1773691132689,3.67499674,2334.6,2333.8,3.53869749]
[1773691136383,3.4537209,2334.4,2333.2,3.40529658]
[1773691137395,3.4537209,2334.4,2333.4,3.40529658]
[1773691137791,3.4537209,2334.4,2333.6,3.40529658]
[1773691139196,3.4537209,2334.4,2333.5,0.21425]
[1773691139397,3.4537209,2334.4,2333.4,3.40529658]
[1773691139593,3.4537209,2334.4,2333.4,3.61955658]
[1773691140292,3.4537209,2334.4,2333.2,3.40529658]
[1773691140494,3.4537209,2334.2,2333.2,3.40529658]
[1773691141393,3.4537209,2334.0,2332.4,3.40529658]
[1773691141588,3.4537209,2333.8,2332.4,3.40529658]
[1773691141792,3.4537209,2333.6,2332.4,3.40529658]
[1773691142395,3.4537209,2333.6,2331.7,0.21441]
[1773691142396,3.4537209,2333.1,2331.9,3.40529658]
[1773691142697,3.4537209,2332.9,2331.4,3.40529658]
[1773691142994,3.4537209,2332.7,2331.4,3.40529658]
[1773691143599,3.45928343,2332.7,2331.4,3.40883119]
[1773691144294,3.45928343,2332.7,2331.4,0.00353461]
[1773691144493,3.4537209,2332.5,2331.4,0.00353461]
[1773691144696,3.4537209,2332.5,2331.4,3.40883119]
[1773691145195,3.4537209,2332.5,2331.4,0.00353461]
[1773691145396,0.00556253,2332.7,2331.0,3.40529658]
[1773691145397,3.4537209,2332.3,2331.0,3.40529658]
[1773691145600,3.4537209,2332.2,2331.0,3.40529658]
[1773691146396,3.4537209,2332.2,2331.0,3.40898013]
[1773691146698,3.66783203,2332.2,2331.0,3.40898013]
[1773691148097,3.66783203,2332.2,2331.0,0.00368355]
[1773691149304,3.4537209,2331.9,2330.5,3.40529658]
[1773691150294,3.4537209,2331.9,2330.5,3.40891539]
[1773691150901,3.4537209,2331.9,2330.7,3.40529658]
[1773691151303,3.4537209,2331.9,2330.5,0.00361881]
[1773691151304,3.4537209,2331.9,2330.5,3.40891539]
[1773691151906,3.4537209,2331.9,2330.7,3.40529658]
[1773691152901,0.21411113,2332.2,2330.9,3.40529658]
[1773691153098,3.4537209,2332.1,2330.9,3.40529658]
[1773691153300,3.4537209,2332.1,2331.1,3.40529658]
[1773691154106,3.4537209,2332.1,2331.3,3.40529658]
[1773691154306,3.4537209,2332.1,2331.2,0.21447]
[1773691154307,3.4537209,2332.1,2331.2,3.61976658]
[1773691154999,0.00556253,2332.7,2331.7,3.40529658]
[1773691155203,0.00556253,2332.7,2331.9,3.40529658]
[1773691155409,3.45928343,2332.7,2331.9,3.40529658]
[1773691156304,3.45928343,2332.7,2331.3,3.40529658]
[1773691156508,3.45928343,2332.7,2331.5,3.40529658]
[1773691159007,3.45928343,2332.7,2331.7,3.40529658]
[1773691159307,3.67156961,2332.7,2331.7,3.40529658]
[1773691159699,3.45928343,2332.7,2331.9,3.40529658]
[1773691160608,3.45928343,2332.7,2331.3,3.40529658]
[1773691160808,3.45928343,2332.7,2331.5,3.40529658]
[1773691161004,3.45928343,2332.7,2331.7,3.40529658]
[1773691161210,3.45928343,2332.7,2331.5,3.40529658]
[1773691161411,3.4537209,2332.5,2331.1,3.40529658]
[1773691164213,1.7994728,2332.2,2331.1,3.40529658]
[1773691164410,3.40962466,2332.1,2330.6,3.39347924]
[1773691164907,3.40962466,2332.1,2330.8,3.39347924]
[1773691165407,3.40962466,2332.1,2331.0,3.39347924]
[1773691165607,3.40962466,2332.4,2331.4,3.39347924]
[1773691167812,3.40962466,2332.4,2331.6,3.39347924]
[1773691168206,3.40962466,2332.4,2331.2,3.39347924]
[1773691168505,3.40962466,2332.4,2331.0,3.39347924]
[1773691168908,3.40962466,2332.4,2331.2,3.39347924]
[1773691170915,3.40962466,2332.2,2330.7,3.39347924]
[1773691171310,6.0914728,2332.4,2330.7,3.39347924]
[1773691171311,3.40962466,2332.0,2330.7,3.39347924]
[1773691171516,3.40962466,2332.0,2330.9,3.39347924]
[1773691172416,3.40962466,2331.8,2330.7,3.39347924]
[1773691172611,3.40962466,2331.6,2330.7,3.39347924]
[1773691173013,3.40962466,2332.1,2330.9,3.39347924]
[1773691173314,3.40962466,2331.9,2331.1,3.39347924]
[1773691174514,3.62656265,2332.1,2331.1,3.39347924]
[1773691174817,3.40962466,2332.1,2331.3,3.39347924]
[1773691175519,3.40962466,2332.1,2330.8,3.39347924]
[1773691176718,3.40962466,2332.1,2331.2,3.39347924]
[1773691177713,3.40962466,2332.1,2330.7,3.39347924]
[1773691177917,3.40962466,2331.9,2330.7,3.39347924]
[1773691178112,3.40962466,2331.7,2330.7,3.39347924]
[1773691178314,3.40962466,2331.7,2330.5,0.00361881]
[1773691178615,9.101,2331.8,2330.5,0.00361881]
[1773691178616,3.40962466,2331.5,2330.5,3.39709805]
[1773691178819,3.40962466,2331.3,2330.5,3.39709805]
[1773691180224,3.40962466,2331.3,2330.5,0.00361881]
[1773691180417,3.40962466,2331.3,2330.5,3.39709805]
[1773691180720,3.40962466,2331.3,2330.5,0.00361881]
[1773691182823,3.40962466,2331.3,2330.5,3.39709805]
[1773691183828,3.40962466,2331.9,2330.7,3.39347924]
[1773691184419,3.40962466,2331.7,2330.7,3.39347924]
[1773691185319,3.40962466,2331.7,2330.9,3.39347924]
[1773691185825,3.40962466,2332.3,2331.1,3.39347924]
[1773691186118,3.40962466,2332.1,2331.1,3.39347924]
[1773691186320,3.40962466,2331.9,2330.6,3.39347924]
[1773691186921,3.40962466,2331.9,2331.0,3.39347924]
[1773691188422,3.40962466,2331.9,2330.6,3.39347924]
[1773691188718,3.40962466,2331.9,2330.8,3.39347924]
[1773691188924,3.40962466,2331.9,2331.0,3.39347924]
[1773691190323,3.40962466,2331.7,2330.6,3.39347924]
[1773691190718,3.40962466,2331.7,2330.8,3.39347924]
[1773691190920,3.40962466,2332.3,2331.2,3.39347924]
[1773691191121,3.40962466,2332.1,2331.2,3.39347924]
[1773691192319,3.40962466,2332.1,2331.1,40.8]
[1773691192827,3.40962466,2332.1,2331.2,3.38221704]
[1773691193123,3.40962466,2332.1,2330.6,3.38221704]
[1773691193627,3.40962466,2332.1,2330.8,3.38221704]
[1773691194025,3.35189394,2331.9,2330.8,3.38221704]
[1773691194420,0.21645705,2332.3,2330.8,3.38221704]
[1773691194421,3.35189394,2331.7,2330.8,3.38221704]
[1773691194922,3.35189394,2331.9,2330.8,3.38221704]
[1773691195119,3.35189394,2331.7,2330.0,3.38221704]
[1773691195319,3.35189394,2331.5,2330.0,3.38221704]
[1773691195519,3.31005253,2331.2,2329.0,8.89343872]
[1773691195725,6.09617931,2331.3,2328.9,3.56367622]
[1773691195726,3.31005253,2330.7,2328.9,3.56367622]
[1773691195927,3.31005253,2330.5,2329.1,3.56367622]
[1773691196126,3.31484988,2330.5,2329.1,3.56707633]
[1773691196329,3.31005253,2330.3,2329.1,3.56707633]
[1773691196728,3.31005253,2330.3,2329.2,0.21465]
[1773691197030,0.00479735,2330.5,2329.5,3.56367622]
[1773691197732,3.31005253,2331.0,2329.7,3.56367622]
[1773691198129,3.31005253,2331.6,2330.3,3.56367622]
[1773691198731,3.31512136,2331.6,2330.3,3.56367622]
[1773691199529,3.31005253,2331.5,2330.3,3.56367622]
[1773691199837,5.37068581,2332.2,2330.7,3.56367622]
[1773691199838,3.31005253,2332.1,2330.7,3.56367622]
[1773691200135,3.31005253,2331.9,2330.7,3.56367622]
[1773691200526,3.31451002,2331.9,2330.7,3.56367622]
[1773691201131,3.31451002,2331.9,2330.9,3.56367622]
[1773691201330,3.31451002,2331.9,2330.9,3.5686634]
[1773691201638,0.00445749,2331.9,2330.9,3.5686634]
[1773691202434,3.31005253,2332.3,2331.1,3.56367622]
[1773691202735,3.31005253,2332.3,2331.1,3.06367622]
[1773691203136,3.31005253,2332.5,2331.3,3.56367622]
[1773691203539,3.31375007,2332.5,2331.3,3.56367622]
[1773691203830,0.00369754,2332.5,2331.5,3.56367622]
[1773691204034,3.31005253,2333.5,2331.7,3.56367622]
[1773691204338,3.31005253,2333.3,2331.7,3.56367622]
[1773691204531,3.31005253,2333.3,2331.9,3.56367622]
[1773691205134,3.31542686,2333.3,2331.9,3.56367622]
[1773691206037,3.31005253,2333.1,2331.9,3.56367622]
[1773691208136,3.31542686,2333.3,2332.1,3.56367622]
[1773691212137,3.52742274,2333.3,2331.0,3.56367622]
[1773691212440,3.31005253,2332.8,2331.0,3.56367622]
[1773691212642,3.31005253,2332.6,2331.1,3.56367622]
[1773691215837,3.31005253,2332.6,2331.1,3.77814622]
[1773691216036,3.31005253,2332.6,2331.3,3.77813622]
[1773691216639,3.31005253,2333.2,2331.9,3.56367622]
[1773691216840,3.31005253,2333.0,2331.9,3.56367622]
[1773691219144,3.31005253,2333.0,2331.8,0.2144]
[1773691219145,3.31005253,2333.0,2332.1,3.56367622]
[1773691221642,0.21015859,2333.2,2332.1,3.56367622]
[1773691221847,3.31005253,2333.2,2332.1,3.56367622]
[1773691226849,3.33021584,2332.8,2331.3,3.58566681]
[1773691227154,3.33021584,2332.6,2331.3,3.58566681]
[1773691227354,3.33021584,2332.6,2331.4,3.58566681]
[1773691228554,3.33021584,2332.6,2331.6,3.58566681]
[1773691230755,3.33021584,2332.8,2331.8,3.58566681]
[1773691233964,3.33021584,2333.2,2332.0,3.58566681]
[1773691234160,3.33021584,2333.0,2332.0,3.58566681]
[1773691235566,0.21472651,2333.2,2332.0,3.58566681]
[1773691235567,3.33021584,2332.8,2332.0,3.58566681]
[1773691236665,3.33021584,2333.1,2332.0,3.58566681]
[1773691236966,3.33021584,2332.9,2332.0,3.58566681]
[1773691237561,3.33021584,2332.7,2331.5,3.58566681]
[1773691240464,3.33021584,2332.7,2331.7,3.58566681]
[1773691240671,3.33021584,2333.0,2331.7,3.58566681]
[1773691240960,8.68084104,2332.9,2331.7,3.58566681]
[1773691241166,8.71479934,2332.8,2331.7,3.58566681]
[1773691241364,3.33021584,2332.8,2331.7,3.58566681]
[1773691241562,3.33021584,2332.8,2331.9,3.58566681]
[1773691243465,3.33021584,2332.6,2331.9,3.58566681]
[1773691243864,0.21174151,2332.9,2332.1,3.58566681]
[1773691244063,3.33021584,2333.0,2332.1,3.58566681]
[1773691244259,3.33021584,2332.8,2332.1,3.58566681]
[1773691248767,3.33021584,2332.8,2331.5,3.58566681]
[1773691248971,3.33021584,2332.8,2331.7,3.58566681]
[1773691250065,3.33021584,2332.8,2331.4,8.543]
[1773691250066,3.33021584,2333.2,2331.8,0.21441]
[1773691250274,3.33021584,2333.0,2331.9,3.58566681]
[1773691250868,5.33642252,2332.9,2331.9,3.58566681]
[1773691251076,3.33021584,2332.8,2331.9,3.58566681]
[1773691252469,3.33021584,2332.8,2331.4,3.30875077]
[1773691252671,3.33086635,2332.6,2331.4,3.30875077]
[1773691253374,3.33086635,2332.4,2331.4,3.30875077]
[1773691258574,0.21503594,2332.6,2331.3,44.35828554]
[1773691258575,3.44010945,2332.2,2331.3,44.35828554]
[1773691258771,3.44010945,2332.2,2331.4,3.55828554]
[1773691261578,3.44010945,2332.2,2331.2,3.55828554]
[1773691262173,3.44010945,2332.0,2331.2,3.55828554]
[1773691262374,3.44010945,2332.0,2331.0,40.8]
[1773691262579,3.44010945,2331.8,2331.1,3.55828554]
[1773691264571,3.44010945,2331.6,2330.6,3.55828554]
[1773691264779,3.44010945,2331.4,2330.6,3.55828554]
[1773691265678,3.44365801,2331.4,2330.6,3.56312378]
[1773691266775,3.44365801,2331.4,2330.6,0.00483824]
[1773691266971,3.44365801,2331.4,2330.4,3.55828554]
[1773691267975,3.44365801,2331.4,2330.4,3.56149358]
[1773691269082,3.66266804,2331.4,2330.4,3.56149358]
[1773691276383,0.00354856,2331.4,2330.6,3.55828554]
[1773691277492,0.00354856,2331.4,2330.8,3.55828554]
[1773691277694,3.44010945,2331.6,2330.8,3.55828554]
[1773691278797,3.44325591,2331.6,2330.5,3.55828554]
[1773691279391,3.44010945,2331.4,2330.5,3.55828554]
[1773691279594,3.44010945,2331.4,2330.4,0.00320804]
[1773691279797,3.44010945,2331.4,2330.4,3.56149358]
[1773691283498,3.20151641,2331.2,2330.4,0.00320804]
[1773691285706,3.20151641,2331.0,2329.3,3.41206993]
[1773691285997,7.1692537,2331.1,2329.3,3.41206993]
[1773691285998,3.20151641,2330.8,2329.3,3.41206993]
[1773691286202,3.20151641,2330.6,2329.4,3.41206993]
[1773691286594,3.20151641,2330.6,2329.4,3.41681575]
[1773691288405,3.48068965,2330.6,2329.4,3.41681575]
[1773691289403,3.48068965,2330.6,2327.6,21.25599]
[1773691289404,1.80210545,2330.3,2329.0,3.41206993]
[1773691289600,3.20151641,2329.8,2328.1,3.41206993]
[1773691289908,3.20151641,2329.8,2328.5,3.41206993]
[1773691289909,3.20151641,2329.6,2328.5,3.41206993]
[1773691290311,3.20151641,2329.6,2328.7,3.41206993]
[1773691290506,0.00357132,2329.6,2328.7,3.41563823]
[1773691290905,9.04,2330.3,2329.1,3.41206993]
[1773691291104,3.20151641,2330.2,2329.1,3.40913438]
[1773691291304,3.20151641,2330.5,2329.3,3.41206993]
[1773691291608,3.53977179,2331.0,2329.2,8.58617]
[1773691291609,3.20151641,2330.7,2329.7,3.41206993]
[1773691291809,3.20151641,2330.9,2329.9,3.41206993]
[1773691292004,9.039,2331.1,2330.1,3.41206993]
[1773691292005,0.0032604,2330.7,2330.1,3.41206993]
[1773691296212,3.20477681,2330.7,2329.9,3.41206993]
[1773691296812,3.20477681,2330.7,2329.6,40.8]
[1773691297012,3.20477681,2330.7,2328.4,16.09598]
[1773691297013,3.20151641,2330.5,2329.1,3.41206993]
[1773691297305,3.20151641,2330.2,2328.8,3.41206993]
[1773691297511,3.20151641,2330.0,2328.8,3.41206993]
[1773691297707,3.20151641,2329.8,2328.8,3.41206993]
[1773691300111,3.20151641,2330.2,2328.9,3.41206993]
[1773691302416,3.4197591,2330.2,2328.9,3.41206993]
[1773691303214,3.4197591,2330.2,2328.8,8.88469]
[1773691303215,3.4197591,2330.2,2329.1,3.41206993]
[1773691305516,3.20151641,2330.0,2328.6,3.41206993]
[1773691305721,3.20151641,2329.8,2328.6,3.41206993]
[1773691305922,3.20151641,2329.8,2328.7,3.41563823]
[1773691307520,3.20151641,2329.6,2328.7,0.0035683]
[1773691308021,3.20151641,2329.4,2328.3,3.41206993]
[1773691308317,3.20151641,2329.7,2328.3,3.62679993]
[1773691308914,3.20151641,2329.7,2328.3,3.63167346]
[1773691311627,3.20151641,2329.7,2328.5,3.41206993]
[1773691312126,3.4115439,2329.7,2328.5,3.41206993]
[1773691318132,3.28839613,2329.5,2328.3,0.00487353]
[1773691318334,3.28839613,2329.3,2328.3,3.18957922]
[1773691320932,3.28839613,2329.1,2328.3,0.00487353]
[1773691321136,3.28839613,2329.1,2328.3,3.18957922]
[1773691321932,3.28839613,2329.6,2328.3,3.18957922]
[1773691322234,3.28839613,2329.4,2328.3,3.18957922]
[1773691324230,3.28839613,2329.2,2328.3,3.18957922]
[1773691333337,3.28839613,2329.0,2328.3,3.18957922]
[1773691333541,3.29204063,2329.0,2328.3,3.18957922]
[1773691337048,0.0036445,2329.0,2328.3,3.18957922]
[1773691338449,3.29204063,2329.0,2328.3,3.18957922]
[1773691343055,3.13655814,2328.8,2328.3,0.00487353]
[1773691343253,3.13655814,2328.8,2328.2,3.31523206]
[1773691344352,3.13655814,2328.8,2328.2,3.31956746]
[1773691350265,3.34688105,2328.8,2328.2,3.31956746]
[1773691351167,3.14020264,2329.0,2328.2,3.31956746]
[1773691351364,8.54003805,2328.9,2328.2,3.31956746]
[1773691351565,3.13655814,2328.9,2328.2,3.31956746]
[1773691351968,5.41363179,2328.8,2328.2,3.31956746]
[1773691352469,3.13655814,2328.9,2328.2,3.31956746]
[1773691352666,5.41359462,2328.8,2328.2,3.31956746]
[1773691352868,3.13655814,2328.9,2328.2,3.31956746]
[1773691353067,5.4136029,2328.8,2328.2,3.31956746]
[1773691353770,8.55016104,2328.8,2328.2,3.31956746]
[1773691353972,3.13655814,2328.7,2328.2,3.31956746]
[1773691354172,3.13655814,2328.6,2328.2,3.31956746]
[1773691355476,8.959,2328.8,2328.2,3.31956746]
[1773691355663,8.54686385,2328.7,2328.2,3.31956746]
[1773691355963,3.13655814,2328.9,2328.2,3.31956746]
[1773691359172,12.10155814,2328.9,2328.2,3.31956746]
[1773691359773,3.13655814,2328.8,2328.2,3.31956746]
[1773691361669,3.13655814,2328.8,2328.2,0.0043354]
[1773691362070,3.13655814,2328.6,2328.2,0.0043354]
[1773691362373,3.13655814,2328.6,2328.1,3.31523206]
[1773691363175,3.13655814,2328.6,2328.1,3.31854679]
[1773691363372,3.13655814,2328.9,2328.1,3.31854679]
[1773691363576,8.54905809,2328.8,2328.1,3.31854679]
[1773691363777,3.13655814,2328.8,2328.1,3.31854679]
[1773691364176,9.19535318,2329.0,2328.1,3.31854679]
[1773691364377,8.5490178,2328.9,2328.1,3.31854679]
[1773691364577,5.41245966,2328.8,2328.1,3.31854679]
[1773691366179,8.5490178,2328.8,2328.1,3.31854679]
[1773691366379,3.13655814,2328.8,2328.1,3.31854679]
[1773691369576,3.13655814,2328.6,2328.1,3.31854679]
[1773691370773,3.13655814,2328.2,2327.4,3.31523206]
[1773691371274,3.13655814,2328.2,2327.6,3.31523206]
[1773691371676,3.13655814,2328.2,2327.6,3.3195292]
[1773691373385,3.13655814,2328.2,2325.3,7.517]
[1773691373386,1.31186912,2327.7,2326.7,3.28225578]
[1773691373680,3.27350704,2327.8,2326.6,1.52675912]
[1773691373681,3.27350704,2327.8,2326.9,3.28225578]
[1773691373983,3.27350704,2327.8,2327.0,3.28225578]
[1773691374178,3.49004771,2328.2,2327.3,3.28225578]
[1773691374385,3.27350704,2328.4,2327.5,3.28225578]
[1773691375779,3.27350704,2328.4,2327.1,3.25139612]
[1773691376082,3.18377786,2328.1,2327.1,3.25139612]
[1773691377485,3.18377786,2328.4,2327.3,3.25139612]
[1773691378480,3.18377786,2328.4,2327.1,3.25139612]
[1773691378783,3.18377786,2328.2,2327.1,3.25139612]
[1773691378990,3.18377786,2328.2,2327.1,44.05139612]
[1773691379185,3.18377786,2328.2,2327.2,3.25139612]
[1773691381983,3.18377786,2328.2,2327.1,41.01484]
[1773691381984,3.18377786,2328.9,2327.4,3.25139612]
[1773691382184,3.18377786,2328.7,2327.4,3.25139612]
[1773691383380,3.18377786,2328.7,2327.6,3.25139612]
[1773691385889,3.39479724,2328.9,2327.8,3.25139612]
[1773691386986,3.18377786,2328.9,2328.0,3.25139612]
[1773691391894,3.18377786,2328.7,2327.7,3.25139612]
[1773691398795,3.18377786,2328.6,2327.7,3.25139612]
[1773691400503,3.18377786,2328.5,2327.7,3.25139612]
[1773691402299,3.18377786,2328.3,2327.7,3.25139612]
[1773691408603,3.29249454,2328.1,2327.0,3.25427114]
[1773691409112,3.29249454,2328.1,2327.1,3.25097698]
[1773691414421,3.29249454,2327.9,2327.1,3.25097698]
[1773691425428,3.29249454,2327.9,2325.2,22.36195]
[1773691425429,3.29249454,2327.7,2326.5,3.25097698]
[1773691425636,3.29249454,2327.7,2325.6,1.52923632]
[1773691425637,3.29249454,2327.2,2326.0,3.25097698]
[1773691425929,3.29249454,2327.2,2326.2,3.25097698]
[1773691426525,3.29706341,2327.2,2326.2,3.25422369]
[1773691432839,3.29706341,2327.2,2326.4,3.10364837]
[1773691436040,3.37981885,2328.4,2327.1,3.42727773]
[1773691436238,3.37981885,2328.4,2327.5,0.21481]
[1773691436445,3.37981885,2328.4,2327.6,3.21243773]
[1773691436739,3.37981885,2328.4,2327.5,3.21243773]
[1773691436940,3.38498718,2328.4,2327.5,3.21243773]
[1773691437342,3.38498718,2328.4,2327.2,40.8]
[1773691437643,3.38498718,2328.4,2327.3,3.21243773]
[1773691442741,3.37981885,2328.2,2327.3,3.21243773]
[1773691443242,3.37981885,2328.2,2326.8,9.08]
[1773691443443,3.37981885,2328.2,2326.9,3.21243773]
[1773691443743,3.37981885,2328.0,2326.3,3.21243773]
[1773691443943,3.37981885,2327.8,2326.3,3.21243773]
[1773691444249,3.37981885,2327.6,2326.3,3.21243773]
[1773691444442,3.37981885,2327.4,2326.3,3.21243773]
[1773691447245,3.37981885,2327.4,2326.2,0.00324671]
[1773691447451,3.37981885,2327.2,2326.2,3.21568444]
[1773691447651,3.37981885,2327.0,2326.2,0.00324671]
[1773691447851,3.37981885,2326.8,2326.2,0.00324671]
[1773691448046,3.37981885,2326.8,2326.2,3.21568444]
[1773691453747,3.37981885,2326.8,2324.9,0.07481128]
[1773691453748,3.37981885,2326.8,2325.0,3.21243773]
[1773691453942,3.37981885,2326.6,2325.0,3.21243773]
[1773691454145,3.37981885,2326.4,2325.1,40.8]
[1773691454348,3.37981885,2326.4,2325.2,3.21243773]
[1773691454549,3.66245169,2326.4,2325.2,3.21243773]
[1773691454848,3.38341474,2326.4,2325.2,3.21725684]
[1773691457355,3.37981885,2326.8,2325.4,3.21243773]
[1773691458152,3.65481786,2326.8,2325.4,3.21243773]
[1773691458348,3.65863219,2326.8,2325.4,3.21243773]
[1773691458754,3.37981885,2326.6,2325.6,3.21243773]
[1773691461460,3.38363318,2326.8,2325.6,3.21243773]
[1773691463958,3.38363318,2326.8,2325.8,3.18133123]
[1773691464149,3.38363318,2326.8,2325.9,3.18133123]
[1773691465760,3.38363318,2326.8,2326.0,3.18133123]
[1773691470568,3.38363318,2326.8,2325.6,3.18133123]
[1773691471469,3.38363318,2326.8,2325.7,3.18133123]
[1773691471869,3.35231979,2326.6,2325.7,3.18133123]
[1773691472363,3.35231979,2326.3,2325.2,3.18615034]
[1773691472565,3.35231979,2326.1,2325.2,3.18615034]
[1773691472763,3.35231979,2325.9,2325.2,3.18615034]
[1773691472975,3.35231979,2326.3,2325.2,3.18615034]
[1773691473171,3.35231979,2326.1,2325.3,3.18133123]
[1773691477467,3.35231979,2326.1,2325.4,3.18133123]
[1773691477670,3.35231979,2325.9,2325.2,3.18615034]
[1773691478969,3.35231979,2326.3,2325.4,3.18133123]
[1773691479166,3.35231979,2326.1,2325.4,3.18133123]
[1773691479369,3.35231979,2326.6,2325.6,3.18133123]
[1773691479572,3.35231979,2326.6,2325.8,3.18133123]
[1773691480371,3.35231979,2326.6,2325.2,0.00481911]
[1773691480577,3.35231979,2326.1,2325.2,0.00481911]
[1773691480778,3.35231979,2325.9,2325.2,0.00481911]
[1773691481070,3.35231979,2325.7,2325.2,3.18615034]
[1773691481470,3.35231979,2326.4,2325.2,3.18615034]
[1773691481773,3.35231979,2326.2,2325.2,3.18615034]
[1773691483572,3.35231979,2326.7,2325.4,3.18133123]
[1773691483774,3.35613412,2326.8,2325.6,3.18133123]
[1773691484077,3.35613412,2326.8,2325.8,3.18133123]
[1773691484477,3.35231979,2326.6,2325.7,3.18133123]
[1773691495196,3.31849728,2326.4,2325.6,3.01182458]
[1773691496396,3.55805382,2326.7,2325.6,3.01182458]
[1773691496397,3.26319788,2326.2,2325.6,3.01182458]
[1773691497901,3.26319788,2326.2,2325.2,0.00481911]
[1773691498203,3.26319788,2326.0,2325.2,0.00481911]
[1773691498402,7.4179713,2326.5,2325.2,0.00481911]
[1773691498403,3.26319788,2325.9,2325.2,3.31511854]
[1773691504303,3.26319788,2325.9,2324.8,3.31029943]
[1773691504503,3.26319788,2325.7,2324.8,3.31029943]
[1773691505607,3.26319788,2325.5,2324.8,3.31421283]
[1773691507004,3.26319788,2326.0,2324.8,3.31421283]
[1773691507204,8.74811502,2326.5,2324.8,3.31421283]
[1773691507205,8.64675847,2325.9,2324.8,3.31421283]
[1773691507410,3.26319788,2325.8,2324.8,3.31421283]
[1773691507812,3.26319788,2325.8,2324.9,9.481]
[1773691508010,3.26319788,2325.8,2325.0,3.31029943]
[1773691508712,3.26319788,2326.2,2325.2,3.31029943]
[1773691509808,3.47934437,2326.2,2325.2,3.31029943]
[1773691510214,3.26319788,2326.2,2325.2,3.31029943]
[1773691512309,3.26319788,2326.2,2325.4,3.31029943]
[1773691513117,3.26319788,2326.7,2325.4,3.31029943]
[1773691513319,3.26319788,2326.5,2325.4,3.31029943]
[1773691513712,3.26319788,2326.5,2325.5,0.21499]
[1773691513912,3.26319788,2326.5,2325.6,3.31029943]
[1773691514222,3.26701221,2326.8,2325.8,3.31029943]
[1773691514415,3.26701221,2326.8,2325.9,3.31029943]
[1773691514714,3.26701221,2326.8,2326.0,40.8]
[1773691515116,3.26319788,2326.6,2325.9,2.95677326]
[1773691518518,3.26701221,2326.8,2325.9,2.95677326]
[1773691526825,3.98270173,2326.7,2325.9,2.95677326]
[1773691529732,3.98651606,2326.8,2325.9,2.95677326]
[1773691529932,5.30066129,2326.8,2325.9,2.95677326]
[1773691530132,5.30066129,2326.8,2326.1,3.77245079]
[1773691530331,3.98270173,2326.7,2326.1,3.77245079]
[1773691530532,5.29684696,2326.6,2326.1,3.77245079]
[1773691531131,3.98270173,2326.6,2326.1,3.77245079]
[1773691532529,1.31795956,2326.8,2326.1,3.77245079]
[1773691532722,3.98270173,2327.3,2326.3,3.77245079]
[1773691533128,3.98270173,2327.1,2326.4,3.77245079]
[1773691533430,3.98270173,2327.1,2326.2,0.21493]
[1773691533431,3.98270173,2327.3,2326.6,3.77245079]
[1773691533732,3.9859422,2327.3,2326.6,3.77698245]
[1773691534235,3.9859422,2327.3,2326.7,3.77245079]
[1773691536734,3.98270173,2327.6,2326.7,3.77245079]
[1773691537329,3.98270173,2327.9,2326.9,3.77245079]
[1773691537732,3.98733563,2327.9,2326.9,3.77245079]
[1773691538636,3.98733563,2327.9,2327.1,3.77245079]
[1773691539040,0.0046339,2327.9,2327.3,3.77245079]
[1773691539233,3.98270173,2328.0,2327.3,3.77245079]
[1773691540239,3.9866039,2328.0,2327.3,3.77245079]
[1773691541137,3.9866039,2328.0,2327.1,3.77245079]
[1773691541531,3.9866039,2328.0,2326.9,9.654]
[1773691541737,3.98270173,2327.8,2326.8,3.77245079]
[1773691545540,3.98270173,2327.8,2326.6,3.77698245]
[1773691545731,3.98270173,2327.6,2326.1,3.77245079]
[1773691545935,3.98270173,2327.4,2326.1,3.77245079]
[1773691546135,3.98270173,2327.2,2326.1,3.77245079]
[1773691546339,3.98270173,2327.0,2326.1,3.77245079]
[1773691546742,3.98270173,2327.0,2326.1,3.77652077]
[1773691551141,4.20023476,2327.0,2326.1,3.77652077]
[1773691552441,4.20023476,2327.0,2326.1,0.00406998]
[1773691553736,4.20023476,2327.0,2325.8,44.61072149]